[Event "Open Nuevo Centro. Jornada 1"]
[Site "Chess.com"]
[Date "2020.06.19"]
[Round "7"]
[White "Donate Peris, Jose Manuel"]
[Black "Rodriguez, Mathias"]
[Result "1-0"]
[WhiteElo "1614"]
[BlackElo "1972"]
[TimeControl "180+2"]
[EndTime "11:52:55 PDT"]
[Termination "Victoria de cheryme por jaque mate"]

1. d4 {[%clk 0:03:01.9]} 1... Nf6 {[%clk 0:03:00.5]} 2. c4 {[%clk 0:03:02.4]}
2... g6 {[%clk 0:03:02.4]} 3. Nc3 {[%clk 0:03:02.4]} 3... d5 {[%clk 0:03:03.8]}
4. cxd5 {[%clk 0:02:58.2]} 4... Nxd5 {[%clk 0:03:05.7]} 5. e4 {[%clk 0:02:56.6]}
5... Nxc3 {[%clk 0:03:06.1]} 6. bxc3 {[%clk 0:02:56.6]} 6... Bg7 {[%clk
0:03:08]} 7. Nf3 {[%clk 0:02:54.7]} 7... O-O {[%clk 0:03:06.7]} 8. Be2 {[%clk
0:02:53.9]} 8... c5 {[%clk 0:03:08.6]} 9. O-O {[%clk 0:02:41.9]} 9... Bg4 {[%clk
0:03:08.8]} 10. Be3 {[%clk 0:02:32.6]} 10... Nc6 {[%clk 0:03:06.7]} 11. d5
{[%clk 0:02:26.5]} 11... Bxf3 {[%clk 0:03:07]} 12. Bxf3 {[%clk 0:02:18.4]} 12...
Ne5 {[%clk 0:03:07.7]} 13. Be2 {[%clk 0:02:14.3]} 13... b6 {[%clk 0:03:05.9]}
14. Rc1 {[%clk 0:02:12.1]} 14... Rc8 {[%clk 0:03:06.5]} 15. c4 {[%clk
0:02:09.1]} 15... f5 {[%clk 0:03:00]} 16. f4 {[%clk 0:02:04.6]} 16... Nf7 {[%clk
0:02:56.2]} 17. e5 {[%clk 0:02:04.8]} 17... h6 {[%clk 0:02:44]} 18. h4 {[%clk
0:02:03.4]} 18... a6 {[%clk 0:02:21.9]} 19. a4 {[%clk 0:02:00.9]} 19... Rb8
{[%clk 0:02:20.7]} 20. Rb1 {[%clk 0:01:47.4]} 20... Qc7 {[%clk 0:02:21]} 21. Qc2
{[%clk 0:01:37.1]} 21... Rfd8 {[%clk 0:02:12.1]} 22. Rfe1 {[%clk 0:01:24.4]}
22... b5 {[%clk 0:02:11.4]} 23. axb5 {[%clk 0:01:23.5]} 23... axb5 {[%clk
0:02:09.2]} 24. cxb5 {[%clk 0:01:21.7]} 24... Rxd5 {[%clk 0:02:07.5]} 25. Bf3
{[%clk 0:01:18.9]} 25... Rdd8 {[%clk 0:02:05]} 26. Qxc5 {[%clk 0:01:16.3]} 26...
Qd7 {[%clk 0:01:53.3]} 27. Red1 {[%clk 0:01:12.8]} 27... Qe8 {[%clk 0:01:50.2]}
28. Rxd8 {[%clk 0:01:12.1]} 28... Rxd8 {[%clk 0:01:52.1]} 29. Bc6 {[%clk
0:01:10.8]} 29... Qf8 {[%clk 0:01:46]} 30. b6 {[%clk 0:01:09.9]} 30... e6 {[%clk
0:01:45.2]} 31. Qxf8+ {[%clk 0:01:04.3]} 31... Bxf8 {[%clk 0:01:47.1]} 32. b7
{[%clk 0:01:02.7]} 32... Rb8 {[%clk 0:01:29]} 33. Bd7 {[%clk 0:00:59.8]} 33...
Nd8 {[%clk 0:01:27.6]} 34. Ba7 {[%clk 0:00:53.5]} 34... Rxb7 {[%clk 0:01:28]}
35. Rxb7 {[%clk 0:00:51.9]} 35... Nxb7 {[%clk 0:01:29.9]} 36. Bxe6+ {[%clk
0:00:51.9]} 36... Kg7 {[%clk 0:01:31.3]} 37. Bd5 {[%clk 0:00:49.3]} 37... Bc5+
{[%clk 0:01:31.4]} 38. Bxc5 {[%clk 0:00:48.1]} 38... Nxc5 {[%clk 0:01:33.3]} 39.
Kh2 {[%clk 0:00:43.2]} 39... Kf8 {[%clk 0:01:16.3]} 40. Kh3 {[%clk 0:00:40.9]}
40... Nd3 {[%clk 0:01:13.5]} 41. g3 {[%clk 0:00:37.5]} 41... Ke7 {[%clk
0:01:13.7]} 42. h5 {[%clk 0:00:36.9]} 42... g5 {[%clk 0:01:11.1]} 43. fxg5
{[%clk 0:00:37.2]} 43... hxg5 {[%clk 0:01:11.2]} 44. g4 {[%clk 0:00:28.8]} 44...
f4 {[%clk 0:01:09.3]} 45. h6 {[%clk 0:00:21.3]} 45... Nf2+ {[%clk 0:01:09]} 46.
Kg2 {[%clk 0:00:20.4]} 46... Nxg4 {[%clk 0:00:56.9]} 47. h7 {[%clk 0:00:20.3]}
47... Ne3+ {[%clk 0:00:58.2]} 48. Kf3 {[%clk 0:00:19.7]} 48... Nxd5 {[%clk
0:01:00.1]} 49. h8=Q {[%clk 0:00:19]} 49... Nc7 {[%clk 0:00:35.5]} 50. Qg7+
{[%clk 0:00:18.8]} 50... Kd8 {[%clk 0:00:34.3]} 51. Qxg5+ {[%clk 0:00:19]} 51...
Kc8 {[%clk 0:00:34.6]} 52. Qxf4 {[%clk 0:00:19.2]} 52... Kd7 {[%clk 0:00:35.4]}
53. Qf6 {[%clk 0:00:17.9]} 53... Ne6 {[%clk 0:00:35.5]} 54. Ke4 {[%clk 0:00:17]}
54... Nc7 {[%clk 0:00:35.5]} 55. Qd6+ {[%clk 0:00:16.3]} 55... Kc8 {[%clk
0:00:36.8]} 56. e6 {[%clk 0:00:16.4]} 56... Kb7 {[%clk 0:00:36.8]} 57. e7 {[%clk
0:00:15.4]} 57... Ka8 {[%clk 0:00:33.7]} 58. Qd8+ {[%clk 0:00:15.8]} 58... Kb7
{[%clk 0:00:34.4]} 59. e8=Q {[%clk 0:00:16.4]} 59... Nxe8 {[%clk 0:00:35.9]} 60.
Qxe8 {[%clk 0:00:17]} 60... Ka7 {[%clk 0:00:36.2]} 61. Qb5 {[%clk 0:00:16.9]}
61... Ka8 {[%clk 0:00:37]} 62. Kd5 {[%clk 0:00:17.4]} 62... Ka7 {[%clk
0:00:38.3]} 63. Kc6 {[%clk 0:00:17.7]} 63... Ka8 {[%clk 0:00:39.4]} 64. Qb7#
{[%clk 0:00:17.9]} 1

[Event "Open Nuevo Centro. Jornada 1"]
[Site "Chess.com"]
[Date "2020.06.19"]
[Round "7"]
[White "Alegre Romaguera, Francesc"]
[Black "Saiz Sapena, Veronica"]
[Result "1-0"]
[WhiteElo "1264"]
[BlackElo "1556"]
[TimeControl "180+2"]
[EndTime "11:53:11 PDT"]
[Termination "Victoria de Francesc_08 por jaque mate"]

1. e4 {[%clk 0:03:01.9]} 1... c6 {[%clk 0:02:57.1]} 2. Nf3 {[%clk 0:02:56.8]}
2... d5 {[%clk 0:02:59]} 3. Nc3 {[%clk 0:02:57.1]} 3... dxe4 {[%clk 0:02:50.4]}
4. Nxe4 {[%clk 0:02:57]} 4... Bf5 {[%clk 0:02:51.7]} 5. Ng3 {[%clk 0:02:57.2]}
5... Bg6 {[%clk 0:02:52.4]} 6. h4 {[%clk 0:02:57.2]} 6... h6 {[%clk 0:02:52.3]}
7. Ne5 {[%clk 0:02:52.5]} 7... Bh7 {[%clk 0:02:50.9]} 8. Qh5 {[%clk 0:02:50.6]}
8... g6 {[%clk 0:02:31.5]} 9. Qf3 {[%clk 0:02:51.3]} 9... Qd5 {[%clk 0:02:21.9]}
10. Qxd5 {[%clk 0:02:20.1]} 10... cxd5 {[%clk 0:02:22.2]} 11. Bb5+ {[%clk
0:02:21.2]} 11... Kd8 {[%clk 0:02:11.3]} 12. Nxf7+ {[%clk 0:02:21.6]} 12... Kc7
{[%clk 0:02:11.7]} 13. Nxh8 {[%clk 0:02:20.9]} 13... a6 {[%clk 0:02:08]} 14. Be8
{[%clk 0:02:18.6]} 14... Bg7 {[%clk 0:02:04.4]} 15. Bxg6 {[%clk 0:02:12.5]}
15... Bxg6 {[%clk 0:01:53.1]} 16. Nxg6 {[%clk 0:02:14.2]} 16... Nd7 {[%clk
0:01:53.6]} 17. Nf5 {[%clk 0:02:08.3]} 17... Bf6 {[%clk 0:01:51.6]} 18. O-O
{[%clk 0:02:06]} 18... e6 {[%clk 0:01:47.4]} 19. Ng3 {[%clk 0:01:55.3]} 19...
Re8 {[%clk 0:01:43.7]} 20. Re1 {[%clk 0:01:49.1]} 20... Kd6 {[%clk 0:01:42.1]}
21. d3 {[%clk 0:01:41.6]} 21... Ne7 {[%clk 0:01:37.1]} 22. Bf4+ {[%clk
0:01:37.4]} 22... Kc6 {[%clk 0:01:35.1]} 23. Ne5+ {[%clk 0:01:33.4]} 23... Nxe5
{[%clk 0:01:34.2]} 24. Bxe5 {[%clk 0:01:35.3]} 24... Bxh4 {[%clk 0:01:34.6]} 25.
Bg7 {[%clk 0:01:26]} 25... Bxg3 {[%clk 0:01:31.3]} 26. fxg3 {[%clk 0:01:25]}
26... Nf5 {[%clk 0:01:32.2]} 27. Be5 {[%clk 0:01:18.5]} 27... Rg8 {[%clk
0:01:32]} 28. Bf4 {[%clk 0:01:12.8]} 28... h5 {[%clk 0:01:31.3]} 29. Rxe6+
{[%clk 0:01:09.3]} 29... Kd7 {[%clk 0:01:27]} 30. Re5 {[%clk 0:01:07.9]} 30...
Ne7 {[%clk 0:01:18.3]} 31. Rxd5+ {[%clk 0:01:06.6]} 31... Nxd5 {[%clk
0:01:16.8]} 32. c4 {[%clk 0:01:01.8]} 32... Nb4 {[%clk 0:01:16]} 33. a3 {[%clk
0:00:56.2]} 33... Nxd3 {[%clk 0:01:16.2]} 34. Rd1 {[%clk 0:00:56.6]} 34... Kc6
{[%clk 0:01:13.1]} 35. Rxd3 {[%clk 0:00:56.9]} 35... b5 {[%clk 0:01:13.6]} 36.
Rd6+ {[%clk 0:00:52.3]} 36... Kb7 {[%clk 0:01:13.5]} 37. cxb5 {[%clk 0:00:52.5]}
37... axb5 {[%clk 0:01:14]} 38. Rd5 {[%clk 0:00:51.9]} 38... Re8 {[%clk
0:01:08.9]} 39. Rxb5+ {[%clk 0:00:50.3]} 39... Kc6 {[%clk 0:01:09.6]} 40. Rxh5
{[%clk 0:00:50.5]} 40... Re1+ {[%clk 0:01:09.9]} 41. Kf2 {[%clk 0:00:49.9]}
41... Rb1 {[%clk 0:01:09.3]} 42. b4 {[%clk 0:00:50.1]} 42... Rb2+ {[%clk
0:01:08.7]} 43. Ke1 {[%clk 0:00:46.6]} 43... Rxg2 {[%clk 0:01:07.4]} 44. Rc5+
{[%clk 0:00:45.6]} 44... Kb7 {[%clk 0:01:06.7]} 45. a4 {[%clk 0:00:40.6]} 45...
Ra2 {[%clk 0:01:07]} 46. a5 {[%clk 0:00:40.9]} 46... Ra4 {[%clk 0:01:07.5]} 47.
Rc4 {[%clk 0:00:36.3]} 47... Ka6 {[%clk 0:01:05.7]} 48. Kd2 {[%clk 0:00:35.2]}
48... Kb7 {[%clk 0:01:06.2]} 49. Kc2 {[%clk 0:00:32.2]} 49... Ra2+ {[%clk
0:01:06.7]} 50. Kb3 {[%clk 0:00:32.3]} 50... Ra1 {[%clk 0:01:06.8]} 51. Rc2
{[%clk 0:00:18.4]} 51... Rb1+ {[%clk 0:01:07]} 52. Rb2 {[%clk 0:00:19]} 52...
Rd1 {[%clk 0:01:06.9]} 53. Rd2 {[%clk 0:00:18.8]} 53... Rb1+ {[%clk 0:01:06.5]}
54. Rb2 {[%clk 0:00:20.1]} 54... Rf1 {[%clk 0:01:06.6]} 55. Kc3 {[%clk
0:00:20.6]} 55... Rf3+ {[%clk 0:01:07]} 56. Kd2 {[%clk 0:00:21.6]} 56... Ra3
{[%clk 0:01:04.7]} 57. g4 {[%clk 0:00:17.5]} 57... Rf3 {[%clk 0:01:03.3]} 58.
Be3 {[%clk 0:00:13.5]} 58... Rg3 {[%clk 0:01:01.9]} 59. g5 {[%clk 0:00:14.2]}
59... Rg2+ {[%clk 0:01:02.3]} 60. Kc3 {[%clk 0:00:14.3]} 60... Rg4 {[%clk
0:00:59.5]} 61. Rf2 {[%clk 0:00:13.9]} 61... Kc6 {[%clk 0:00:58.6]} 62. Rf4
{[%clk 0:00:14.5]} 62... Rg3 {[%clk 0:00:57]} 63. Rc4+ {[%clk 0:00:12.8]} 63...
Kb5 {[%clk 0:00:56.4]} 64. Kd3 {[%clk 0:00:11]} 64... Ka4 {[%clk 0:00:48.6]} 65.
a6 {[%clk 0:00:06.4]} 65... Kb5 {[%clk 0:00:47.7]} 66. a7 {[%clk 0:00:07.1]}
66... Rg2 {[%clk 0:00:48.5]} 67. a8=Q {[%clk 0:00:07.5]} 67... Rxg5 {[%clk
0:00:42.4]} 68. Qa5# {[%clk 0:00:07.3]} 1

[Event "Open Nuevo Centro. Jornada 1"]
[Site "Chess.com"]
[Date "2020.06.19"]
[Round "7"]
[White "Roca Cruz, Rafael"]
[Black "Movsisyan, Tigran"]
[Result "1-0"]
[WhiteElo "1686"]
[BlackElo "1873"]
[TimeControl "180+2"]
[EndTime "11:53:29 PDT"]
[Termination "Victoria de RafaRocaCruz por abandono"]

1. d4 {[%clk 0:03:01.5]} 1... d5 {[%clk 0:03:01]} 2. c4 {[%clk 0:03:02.1]} 2...
e6 {[%clk 0:02:55.8]} 3. Nc3 {[%clk 0:03:02.3]} 3... Be7 {[%clk 0:02:56.5]} 4.
Qc2 {[%clk 0:02:58.7]} 4... Nf6 {[%clk 0:02:55.5]} 5. Bg5 {[%clk 0:02:59.4]}
5... O-O {[%clk 0:02:50.5]} 6. cxd5 {[%clk 0:03:00.4]} 6... exd5 {[%clk
0:02:49.5]} 7. e3 {[%clk 0:03:01]} 7... c6 {[%clk 0:02:51]} 8. Bd3 {[%clk
0:03:01.7]} 8... Nbd7 {[%clk 0:02:50.4]} 9. Nge2 {[%clk 0:03:02.7]} 9... h6
{[%clk 0:02:37.9]} 10. Bh4 {[%clk 0:03:03.3]} 10... b6 {[%clk 0:02:32.4]} 11.
O-O {[%clk 0:02:57.8]} 11... Bb7 {[%clk 0:02:33.4]} 12. Rae1 {[%clk 0:02:58.2]}
12... Rc8 {[%clk 0:02:34.8]} 13. f3 {[%clk 0:02:56.2]} 13... c5 {[%clk
0:02:35.9]} 14. Bf5 {[%clk 0:02:49.2]} 14... Re8 {[%clk 0:02:15.4]} 15. Nb5
{[%clk 0:02:24.9]} 15... cxd4 {[%clk 0:02:03.9]} 16. Qb3 {[%clk 0:02:14.2]}
16... Nc5 {[%clk 0:02:03]} 17. Qd1 {[%clk 0:01:42.6]} 17... Ra8 {[%clk
0:01:20.1]} 18. exd4 {[%clk 0:01:21.4]} 18... Ba6 {[%clk 0:00:57.7]} 19. Nbc3
{[%clk 0:00:46.9]} 19... Nb7 {[%clk 0:00:58.6]} 20. Bb1 {[%clk 0:00:42.4]} 20...
Bb4 {[%clk 0:00:51.9]} 21. Rf2 {[%clk 0:00:37.4]} 21... Bd6 {[%clk 0:00:48.5]}
22. Qc2 {[%clk 0:00:36.5]} 22... g6 {[%clk 0:00:32.8]} 23. Qd2 {[%clk
0:00:29.7]} 23... Kg7 {[%clk 0:00:24.1]} 24. Nc1 {[%clk 0:00:28.3]} 24... Rxe1+
{[%clk 0:00:14.6]} 25. Qxe1 {[%clk 0:00:28.6]} 25... Qe7 {[%clk 0:00:16.1]} 26.
Bxf6+ {[%clk 0:00:17.9]} 26... Qxf6 {[%clk 0:00:16.7]} 27. Nxd5 {[%clk
0:00:18.6]} 27... Qxd4 {[%clk 0:00:17.1]} 28. Be4 {[%clk 0:00:13.1]} 28... Bc5
{[%clk 0:00:18]} 29. Nb3 {[%clk 0:00:10.1]} 29... Qxf2+ {[%clk 0:00:18.7]} 30.
Qxf2 {[%clk 0:00:10.8]} 30... Bxf2+ {[%clk 0:00:20.6]} 31. Kxf2 {[%clk
0:00:12.7]} 31... Nc5 {[%clk 0:00:21.6]} 32. Bc2 {[%clk 0:00:12.3]} 32... Re8
{[%clk 0:00:20.7]} 33. Nd4 {[%clk 0:00:08.9]} 33... Ne6 {[%clk 0:00:20.6]} 34.
Nc7 {[%clk 0:00:09.6]} 34... Nxc7 {[%clk 0:00:21.5]} 35. Bb3 {[%clk 0:00:08.8]}
35... Nb5 {[%clk 0:00:20.5]} 36. Nc6 {[%clk 0:00:08]} 36... Nd4 {[%clk
0:00:19.1]} 37. Nxd4 {[%clk 0:00:08.4]} 37... Rd8 {[%clk 0:00:20.4]} 38. Ke3
{[%clk 0:00:09.1]} 38... f5 {[%clk 0:00:21.2]} 39. Ne6+ {[%clk 0:00:09.8]} 39...
Kf6 {[%clk 0:00:22]} 40. Nxd8 {[%clk 0:00:11]} 40... Bf1 {[%clk 0:00:23.4]} 41.
g3 {[%clk 0:00:10.3]} 41... Bb5 {[%clk 0:00:22.3]} 42. a4 {[%clk 0:00:10.3]}
42... Bd7 {[%clk 0:00:22.9]} 43. Bc4 {[%clk 0:00:09.5]} 43... Ke7 {[%clk
0:00:24.1]} 44. Nb7 {[%clk 0:00:10.2]} 44... Bc6 {[%clk 0:00:25]} 45. Ba6 {[%clk
0:00:08.4]} 45... Kd7 {[%clk 0:00:23.6]} 46. Bb5 {[%clk 0:00:06.8]} 46... Kc7
{[%clk 0:00:20.4]} 47. Bxc6 {[%clk 0:00:05.7]} 47... Kxc6 {[%clk 0:00:21.8]} 48.
Nd8+ {[%clk 0:00:06.9]} 48... Kd7 {[%clk 0:00:22.3]} 49. Nf7 {[%clk 0:00:08.2]}
49... h5 {[%clk 0:00:23.6]} 50. Ne5+ {[%clk 0:00:08.5]} 50... Ke6 {[%clk
0:00:25.1]} 51. f4 {[%clk 0:00:09.9]} 51... Kd5 {[%clk 0:00:25.2]} 52. Kd3
{[%clk 0:00:10.1]} 52... g5 {[%clk 0:00:25.6]} 53. b4 {[%clk 0:00:10.2]} 53...
gxf4 {[%clk 0:00:26]} 54. gxf4 {[%clk 0:00:11.1]} 54... a5 {[%clk 0:00:25]} 55.
bxa5 {[%clk 0:00:11.7]} 55... bxa5 {[%clk 0:00:26.9]} 56. h4 {[%clk 0:00:12.6]}
56... Kc5 {[%clk 0:00:27.2]} 57. Kc3 {[%clk 0:00:11.2]} 57... Kd5 {[%clk
0:00:28.4]} 58. Ng6 {[%clk 0:00:12]} 58... Ke4 {[%clk 0:00:28.6]} 59. Kc4 {[%clk
0:00:11.1]} 59... Kf3 {[%clk 0:00:26.5]} 60. Kd5 {[%clk 0:00:11.4]} 60... Kg4
{[%clk 0:00:25.2]} 61. Ke5 {[%clk 0:00:10.5]} 61... Kf3 {[%clk 0:00:24.5]} 62.
Kxf5 {[%clk 0:00:11.6]} 62... Ke3 {[%clk 0:00:26.4]} 63. Ke5 {[%clk 0:00:12.2]}
63... Kd3 {[%clk 0:00:27.7]} 64. f5 {[%clk 0:00:13.5]} 64... Kc4 {[%clk
0:00:29.5]} 65. f6 {[%clk 0:00:14.6]} 65... Kb4 {[%clk 0:00:31.4]} 66. f7 {[%clk
0:00:16]} 66... Kxa4 {[%clk 0:00:33.3]} 67. f8=Q {[%clk 0:00:17.3]} 1

[Event "Open Nuevo Centro. Jornada 1"]
[Site "Chess.com"]
[Date "2020.06.19"]
[Round "7"]
[White "Gil Lopez, Alejandro"]
[Black "Chernikov, Vladimir"]
[Result "0-1"]
[WhiteElo "2038"]
[BlackElo "2244"]
[TimeControl "180+2"]
[EndTime "11:53:46 PDT"]
[Termination "Victoria de isla88 por tiempo"]

1. e4 {[%clk 0:03:01.9]} 1... c5 {[%clk 0:02:58.8]} 2. Nf3 {[%clk 0:03:03.2]}
2... Nc6 {[%clk 0:02:58.5]} 3. c3 {[%clk 0:03:04.1]} 3... Nf6 {[%clk 0:02:57.9]}
4. Qc2 {[%clk 0:03:03.7]} 4... d6 {[%clk 0:02:48.5]} 5. d4 {[%clk 0:03:01.4]}
5... cxd4 {[%clk 0:02:49.4]} 6. cxd4 {[%clk 0:03:03.3]} 6... g6 {[%clk
0:02:48.7]} 7. d5 {[%clk 0:03:01.7]} 7... Nb8 {[%clk 0:02:37.7]} 8. Nc3 {[%clk
0:02:57.8]} 8... Bg7 {[%clk 0:02:36.4]} 9. Bg5 {[%clk 0:02:57.2]} 9... O-O
{[%clk 0:02:35.2]} 10. h4 {[%clk 0:02:51.8]} 10... Bg4 {[%clk 0:02:33.9]} 11.
Be2 {[%clk 0:02:47]} 11... Nbd7 {[%clk 0:02:32.2]} 12. O-O {[%clk 0:02:43.8]}
12... Rc8 {[%clk 0:02:28.2]} 13. Rac1 {[%clk 0:02:42.2]} 13... a6 {[%clk
0:02:28.2]} 14. Qd2 {[%clk 0:02:40.5]} 14... Nc5 {[%clk 0:02:22.8]} 15. Qf4
{[%clk 0:02:24.9]} 15... Bxf3 {[%clk 0:02:11]} 16. Qxf3 {[%clk 0:02:18.1]} 16...
Qb6 {[%clk 0:02:07.1]} 17. b3 {[%clk 0:02:10.7]} 17... Qb4 {[%clk 0:02:02.2]}
18. h5 {[%clk 0:02:06.1]} 18... h6 {[%clk 0:01:36.2]} 19. Bd2 {[%clk 0:01:45.9]}
19... Ncxe4 {[%clk 0:01:26.6]} 20. Nxe4 {[%clk 0:01:42.4]} 20... Qxe4 {[%clk
0:01:27.6]} 21. hxg6 {[%clk 0:01:31.4]} 21... fxg6 {[%clk 0:01:18.7]} 22. Qxe4
{[%clk 0:01:26.8]} 22... Nxe4 {[%clk 0:01:20.6]} 23. Be3 {[%clk 0:01:28.1]}
23... Kh7 {[%clk 0:01:12.5]} 24. Rc4 {[%clk 0:01:01.6]} 24... Nc3 {[%clk
0:01:08.2]} 25. Bd3 {[%clk 0:00:59.4]} 25... Rxc4 {[%clk 0:01:06.9]} 26. bxc4
{[%clk 0:00:56]} 26... b5 {[%clk 0:00:56.4]} 27. cxb5 {[%clk 0:00:46.5]} 27...
axb5 {[%clk 0:00:58.3]} 28. a3 {[%clk 0:00:46.8]} 28... Ra8 {[%clk 0:00:51.7]}
29. Bc1 {[%clk 0:00:46.4]} 29... Rb8 {[%clk 0:00:42.3]} 30. Bd2 {[%clk
0:00:38.4]} 30... Nxd5 {[%clk 0:00:42.8]} 31. Rb1 {[%clk 0:00:38]} 31... Bc3
{[%clk 0:00:23.2]} 32. Bxc3 {[%clk 0:00:37.2]} 32... Nxc3 {[%clk 0:00:25.1]} 33.
Rb3 {[%clk 0:00:38.3]} 33... Nd5 {[%clk 0:00:19.5]} 34. Rxb5 {[%clk 0:00:38.7]}
34... Rxb5 {[%clk 0:00:16.2]} 35. Bxb5 {[%clk 0:00:40.6]} 35... Nc3 {[%clk
0:00:14.5]} 36. Bc6 {[%clk 0:00:39.6]} 36... Kg7 {[%clk 0:00:11]} 37. a4 {[%clk
0:00:40.5]} 37... Ne2+ {[%clk 0:00:10.4]} 38. Kf1 {[%clk 0:00:38.8]} 38... Nd4
{[%clk 0:00:12.3]} 39. Bb7 {[%clk 0:00:33.4]} 39... Nb3 {[%clk 0:00:12.7]} 40.
Ke2 {[%clk 0:00:30.6]} 40... Kf6 {[%clk 0:00:13.9]} 41. Bd5 {[%clk 0:00:27.2]}
41... Na5 {[%clk 0:00:13.4]} 42. Kd3 {[%clk 0:00:26.5]} 42... Ke5 {[%clk
0:00:14.5]} 43. Be4 {[%clk 0:00:26.7]} 43... g5 {[%clk 0:00:14.2]} 44. Bg6
{[%clk 0:00:26.6]} 44... d5 {[%clk 0:00:14.5]} 45. g3 {[%clk 0:00:21.8]} 45...
Kd6 {[%clk 0:00:15.6]} 46. f4 {[%clk 0:00:20.3]} 46... gxf4 {[%clk 0:00:16.9]}
47. gxf4 {[%clk 0:00:22.2]} 47... e5 {[%clk 0:00:17]} 48. f5 {[%clk 0:00:20.7]}
48... e4+ {[%clk 0:00:17.3]} 49. Ke3 {[%clk 0:00:21.5]} 49... Ke5 {[%clk
0:00:17.9]} 50. Bh7 {[%clk 0:00:21.3]} 50... d4+ {[%clk 0:00:18.8]} 51. Ke2
{[%clk 0:00:22]} 51... d3+ {[%clk 0:00:19]} 52. Ke1 {[%clk 0:00:22.6]} 52... e3
{[%clk 0:00:18.5]} 53. f6 {[%clk 0:00:22.7]} 53... d2+ {[%clk 0:00:18.3]} 54.
Ke2 {[%clk 0:00:24]} 54... Kxf6 {[%clk 0:00:19.7]} 55. Bc2 {[%clk 0:00:25.3]}
55... Nc4 {[%clk 0:00:19.5]} 56. Kd3 {[%clk 0:00:22.6]} 56... Ke5 {[%clk
0:00:17.6]} 57. a5 {[%clk 0:00:20.2]} 57... Nxa5 {[%clk 0:00:14.9]} 58. Kxe3
{[%clk 0:00:20.9]} 58... Nc4+ {[%clk 0:00:16.1]} 59. Ke2 {[%clk 0:00:22]} 59...
Kd4 {[%clk 0:00:16.5]} 60. Bd1 {[%clk 0:00:19.5]} 60... Kc3 {[%clk 0:00:16.7]}
61. Kf3 {[%clk 0:00:19.1]} 61... Nb2 {[%clk 0:00:16.7]} 62. Be2 {[%clk
0:00:19.6]} 62... Kd4 {[%clk 0:00:13.2]} 63. Kg4 {[%clk 0:00:17.7]} 63... Ke3
{[%clk 0:00:14]} 64. Bf3 {[%clk 0:00:19]} 64... Nd3 {[%clk 0:00:13.2]} 65. Kg3
{[%clk 0:00:09.5]} 65... Nf2 {[%clk 0:00:13.4]} 66. Bh5 {[%clk 0:00:05.2]} 66...
Ne4+ {[%clk 0:00:12.6]} 67. Kh4 {[%clk 0:00:06.1]} 67... Nc3 {[%clk 0:00:13.5]}
68. Bd1 {[%clk 0:00:02.5]} 68... Nxd1 {[%clk 0:00:14.2]} 69. Kh5 {[%clk
0:00:03.1]} 69... Nf2 {[%clk 0:00:16.1]} 0